fUSD/lending_fUSD_20250930
["ID","MTS","AMOUNT","RATE_DAILY","PERIOD"]
[388547823,1759237843502,-878.09,0.00019178,2]
[388547824,1759237843511,-500.0,0.00019178,2]
[388547825,1759237843520,-1158.03,0.00019178,2]
[388547826,1759237843529,-500.0,0.00019178,2]
[388547827,1759237843539,-500.0,0.00019178,2]
[388547828,1759237843548,-3110.29,0.00019178,2]
[388547829,1759237843557,-500.0,0.00019178,2]
[388547830,1759237843567,-965.82,0.00019178,2]
[388547831,1759237843576,-500.0,0.00019178,2]
[388547832,1759237843585,-1476.21,0.00019178,2]
[388547833,1759237843594,-500.0,0.00019178,2]
[388547834,1759237843603,-500.0,0.00019178,2]
[388547835,1759237843613,-500.0,0.00019178,2]
[388547836,1759237843622,-500.0,0.00019178,2]
[388547837,1759237843632,-500.0,0.00019178,2]
[388547838,1759237843641,-500.0,0.00019178,2]
[388547839,1759237843651,-6937.239158,0.00019178,2]
[388547840,1759237843660,-610.82,0.00019178,2]
[388547841,1759237843670,-299.772681,0.00019178,2]
[388547842,1759237843679,-253.189481,0.00019178,2]
[388547843,1759237843688,-308.242497,0.00019178,2]
[388547844,1759237843697,-174.32458418,0.00019178,2]
[388547845,1759237843706,-500.0,0.00019178,2]
[388547846,1759237843716,-500.0,0.00019178,2]
[388547847,1759237843725,-1427.14,0.00019178,2]
[388547848,1759237843734,-2712.686358,0.00019178,2]
[388547849,1759237843743,-500.0,0.00019178,2]
[388547850,1759237843752,-5938.681271,0.00019178,2]
[388547851,1759237843761,-2304.48,0.00019178,2]
[388547852,1759237843770,-219.13890796,0.00019178,2]
[388547853,1759237843780,-500.0,0.00019178,2]
[388547854,1759237843790,-500.0,0.00019178,2]
[388547855,1759237843799,-1362.69,0.00019178,2]
[388547856,1759237843809,-2816.6,0.00019178,2]
[388547857,1759237843818,-500.0,0.00019178,2]
[388547858,1759237843827,-545.14,0.00019178,2]
[388547859,1759237843837,-500.0,0.00019178,2]
[388547860,1759237843846,-500.0,0.00019178,2]
[388547861,1759237843856,-500.0,0.00019178,2]
[388547862,1759237843868,-500.0,0.00019178,2]
[388547863,1759237843878,-837.64,0.00019178,2]
[388547864,1759237843887,-4580.15,0.00019178,2]
[388547865,1759237843896,-595.92,0.00019178,2]
[388547866,1759237843905,-500.0,0.00019178,2]
[388547867,1759237843914,-1695.32,0.00019178,2]
[388547868,1759237843924,-500.0,0.00019178,2]
[388547869,1759237843933,-2028.79,0.00019178,2]
[388547870,1759237843942,-3029.88,0.00019178,2]
[388547871,1759237843951,-1121.59,0.00019178,2]
[388547872,1759237843961,-3791.62,0.00019178,2]
[388547873,1759237843970,-500.0,0.00019178,2]
[388547874,1759237843980,-1933.95,0.00019178,2]
[388547875,1759237843989,-785.22,0.00019178,2]
[388547876,1759237843999,-500.0,0.00019178,2]
[388547877,1759237844008,-500.0,0.00019178,2]
[388547878,1759237844017,-500.0,0.00019178,2]
[388547879,1759237844027,-780.94,0.00019178,2]
[388547880,1759237844036,-2807.78,0.00019178,2]
[388547881,1759237844045,-2517.95,0.00019178,2]
[388547882,1759237844054,-500.0,0.00019178,2]
[388547883,1759237844064,-500.0,0.00019178,2]
[388547884,1759237844074,-500.0,0.00019178,2]
[388547885,1759237844084,-500.0,0.00019178,2]
[388547886,1759237844093,-2744.08,0.00019178,2]
[388547887,1759237844103,-2608.34,0.00019178,2]
[388547888,1759237844113,-500.0,0.00019178,2]
[388547889,1759237844122,-500.0,0.00019178,2]
[388547890,1759237844132,-500.0,0.00019178,2]
[388547891,1759237844141,-583.88,0.00019178,2]
[388547892,1759237844151,-500.0,0.00019178,2]
[388547893,1759237844160,-2149.51,0.00019178,2]
[388547894,1759237844170,-500.0,0.00019178,2]
[388547895,1759237844181,-2430.33,0.00019178,2]
[388547896,1759237844191,-500.0,0.00019178,2]
[388547897,1759237844200,-520.51,0.00019178,2]
[388547898,1759237844209,-500.0,0.00019178,2]
[388547899,1759237844219,-500.0,0.00019178,2]
[388547900,1759237844228,-500.0,0.00019178,2]
[388547901,1759237844238,-500.0,0.00019178,2]
[388547902,1759237844247,-2286.93,0.00019178,2]
[388547903,1759237844257,-677.06,0.00019178,2]
[388547904,1759237844266,-2232.42,0.00019178,2]
[388547905,1759237844275,-500.0,0.00019178,2]
[388547906,1759237844285,-1289.72,0.00019178,2]
[388547907,1759237844294,-1834.77,0.00019178,2]
[388547908,1759237844303,-500.0,0.00019178,2]
[388547909,1759237844314,-627.0268783,0.00019178,2]
[388547910,1759237844324,-2187.5,0.00019178,2]
[388547911,1759237844334,-500.0,0.00019178,2]
[388547912,1759237844344,-2137.39,0.00019178,2]
[388547913,1759237844353,-940.86,0.00019178,2]
[388547914,1759237844363,-1172.72,0.00019178,2]
[388547915,1759237844372,-611.56,0.00019178,2]
[388547916,1759237844381,-2862.32,0.00019178,2]
[388547917,1759237844390,-500.0,0.00019178,2]
[388547918,1759237844401,-2587.47,0.00019178,2]
[388547919,1759237844412,-500.0,0.00019178,2]
[388547920,1759237844421,-1186.96,0.00019178,2]
[388547921,1759237844431,-500.0,0.00019178,2]
[388547922,1759237844440,-500.0,0.00019178,2]
[388547923,1759237844449,-500.0,0.00019178,2]
[388547924,1759237844458,-500.0,0.00019178,2]
[388547925,1759237844467,-500.0,0.00019178,2]
[388547926,1759237844476,-1612.99,0.00019178,2]
[388547927,1759237844487,-500.0,0.00019178,2]
[388547928,1759237844496,-500.0,0.00019178,2]
[388547929,1759237844505,-670.75,0.00019178,2]
[388547930,1759237844515,-1721.89,0.00019178,2]
[388547931,1759237844524,-1712.35192549,0.00019178,2]
[388547933,1759237846122,-396.83604645,0.00019178,2]
[388547934,1759237846134,-1206.62202806,0.00019178,2]
[388547935,1759237846143,-500.0,0.00019178,2]
[388547936,1759237846152,-1372.28,0.00019178,2]
[388547937,1759237846161,-500.0,0.00019178,2]
[388547938,1759237846171,-662.88,0.00019178,2]
[388547939,1759237846181,-762.51,0.00019178,2]
[388547940,1759237846190,-500.0,0.00019178,2]
[388547941,1759237846200,-1348.68,0.00019178,2]
[388547942,1759237846209,-500.0,0.00019178,2]
[388547943,1759237846218,-500.0,0.00019178,2]
[388547944,1759237846227,-203.59896206,0.00019178,2]
[388547945,1759237846253,-1698.77103794,0.00019178,2]
[388547946,1759237846263,-500.0,0.00019178,2]
[388547947,1759237846272,-202.39291561,0.00019178,2]
[388547948,1759237847437,-297.60708439,0.00019178,2]
[388547949,1759237847447,-662.22,0.00019178,2]
[388547950,1759237847456,-1756.98291661,0.00019178,2]
[388547951,1759237847632,-1220.94708339,0.00019178,2]
[388547952,1759237847642,-500.0,0.00019178,2]
[388547953,1759237847650,-196.27321145,0.00019178,2]
[388547954,1759237847787,-303.72678855,0.00019178,2]
[388547955,1759237847797,-500.0,0.00019178,2]
[388547956,1759237847806,-500.0,0.00019178,2]
[388547957,1759237847815,-1666.73,0.00019178,2]
[388547958,1759237847825,-1301.36185545,0.00019178,2]
[388547965,1759238012175,500.0,0.00025157,120]
[388547973,1759238278545,206.09544824,0.00025999,120]
[388547975,1759238365850,150.0,0.000161,2]
[388547985,1759238689512,500.0,0.00025999,120]
[388547993,1759238894904,150.0,0.000151,2]
[388547994,1759238895004,150.0,0.0001628,2]
[388548020,1759238991117,-167.33580761,0.00016652,2]
[388548021,1759238994045,-232.68689079,0.00016652,2]
[388548022,1759238997894,-245.33580761,0.00016652,2]
[388548023,1759239002347,-354.64149399,0.00016652,2]
[388548043,1759239032094,-500.0,0.00016775,2]
[388548044,1759239032103,-166.0,0.00016868,2]
[388548045,1759239032114,-334.0,0.00016868,2]
[388548046,1759239032123,-1004.92422624,0.00016899,2]
[388548047,1759239032143,-195.07577376,0.00016899,2]
[388548048,1759239032152,-160.50418895,0.000169,2]
[388548054,1759239035896,-347.0,0.000169,2]
[388548055,1759239036053,-368.07577376,0.000169,2]
[388548057,1759239038005,-403.02650114,0.000169,2]
[388548058,1759239038066,-1377.27193708,0.000169,2]
[388548059,1759239038082,-2033.46858878,0.000169,2]
[388548060,1759239038093,-1675.59841078,0.000169,2]
[388548061,1759239038103,-1495.92318789,0.000169,2]
[388548062,1759239038113,-466.743109,0.000169,2]
[388548063,1759239038122,-978.74529233,0.000169,2]
[388548064,1759239038138,-839.84115835,0.000169,2]
[388548065,1759239038147,-540.62866168,0.0001693,2]
[388548066,1759239038290,-1959.37133832,0.0001693,2]
[388548067,1759239038300,-1200.0,0.00016959,2]
[388548068,1759239038309,-2000.0,0.0001696,2]
[388548069,1759239038318,-160.0,0.0001696,2]
[388548070,1759239038328,-250.0,0.0001697,2]
[388548071,1759239038337,-289.8097871,0.00016973,2]
[388548072,1759239038346,-500.0,0.00016973,2]
[388548073,1759239038355,-500.0,0.00016973,2]
[388548075,1759239038364,-500.0,0.00016973,2]
[388548076,1759239038373,-500.0,0.00016973,2]
[388548078,1759239038382,-311.24018011,0.00016973,2]
[388548079,1759239038392,-255.46421077,0.00016973,2]
[388548080,1759239038401,-500.0,0.00016973,2]
[388548081,1759239038410,-2500.0,0.0001698,2]
[388548082,1759239038419,-151.0,0.00016997,2]
[388548083,1759239038429,-209.27128997,0.00016998,2]
[388548084,1759239038438,-182.54252618,0.00016998,2]
[388548085,1759239038447,-261.70944872,0.00016998,2]
[388548086,1759239038456,-500.0,0.00016998,2]
[388548087,1759239038466,-500.0,0.00016998,2]
[388548088,1759239038476,-500.0,0.00016998,2]
[388548090,1759239038486,-500.0,0.00016998,2]
[388548092,1759239038495,-500.0,0.00016998,2]
[388548093,1759239038504,-541.03867558,0.00016998,2]
[388548094,1759239038514,-250.6526245,0.00016998,2]
[388548095,1759239038524,-1541301.43100726,0.00016999,2]
[388548096,1759239038535,-7197038.4070005,0.00017,2]
[388548097,1759239038559,-389.2,0.00017,2]
[388548098,1759239038571,-45384.805969,0.00017,2]
[388548100,1759239040026,-119402.68132757,0.00017,2]
[388548101,1759239040037,-233508.0448719,0.00017,2]
[388548102,1759239040088,-113247.04195304,0.00017,2]
[388548103,1759239040224,-311.81499992,0.00017,2]
[388548104,1759239040236,-1133.35,0.00017,2]
[388548105,1759239040248,-271.42282622,0.00017,2]
[388548106,1759239040259,-5795.03188239,0.00017,2]
[388548107,1759239040279,-7205469.78118505,0.00017,2]
[388548127,1759239043115,-1129.4,0.00017,2]
[388548152,1759239286458,200.0,0.00016591,2]
[388548165,1759239373952,228.4,0.00016542,2]
[388548166,1759239420269,150.0,0.000141,2]
[388548167,1759239422004,150.0,0.0001528,2]
[388548168,1759239422233,150.0,0.0001647,2]
[388548170,1759239472397,250.0,0.00016414,2]
[388548172,1759239486235,150.0,0.00016334,7]
[388548175,1759239570917,-300.0,0.00016659,2]
[388548176,1759239570942,-160.0,0.0001666,2]
[388548177,1759239570967,-500.0,0.0001666,2]
[388548178,1759239570994,-300.0,0.0001666,2]
[388548179,1759239571024,-195.0,0.0001666,2]
[388548180,1759239571049,-668.63,0.0001666,2]
[388548181,1759239571074,-2500.0,0.0001666,2]
[388548182,1759239571099,-500.0,0.0001666,2]
[388548183,1759239571123,-250.0,0.0001666,2]
[388548184,1759239571147,-2892.538,0.0001666,2]
[388548185,1759239571171,-300.0,0.00016666,2]
[388548186,1759239571548,-310.68639139,0.00016666,2]
[388548187,1759239571580,-195.0,0.00016666,2]
[388548188,1759239571605,-184.7439825,0.00016691,2]
[388548189,1759239571630,-2500.0,0.00016692,2]
[388548190,1759239571654,-1684.64,0.00016791,2]
[388548191,1759239571677,-205.42,0.00016836,2]
[388548192,1759239571702,-258.0,0.00016898,2]
[388548193,1759239571726,-1200.0,0.00016899,2]
[388548194,1759239571750,-276.0,0.00016899,2]
[388548195,1759239571773,-300.0,0.00016899,2]
[388548196,1759239571797,-550.0,0.00016899,2]
[388548197,1759239571821,-607.13216062,0.000169,2]
[388548198,1759239571844,-277.9406,0.000169,2]
[388548199,1759239571868,-739.9309666,0.000169,2]
[388548200,1759239571892,-233.3715545,0.000169,2]
[388548201,1759239571915,-462.10073938,0.000169,2]
[388548202,1759239571937,-4044.0806,0.000169,2]
[388548203,1759239571960,-500.0,0.000169,2]
[388548204,1759239571983,-500.0,0.000169,2]
[388548205,1759239572011,-500.0,0.000169,2]
[388548206,1759239572037,-500.0,0.000169,2]
[388548207,1759239572062,-500.0,0.000169,2]
[388548208,1759239572087,-500.0,0.000169,2]
[388548209,1759239572111,-500.0,0.000169,2]
[388548210,1759239572135,-500.0,0.000169,2]
[388548211,1759239572159,-500.0,0.000169,2]
[388548212,1759239572181,-500.0,0.000169,2]
[388548213,1759239572210,-500.0,0.000169,2]
[388548214,1759239572234,-500.0,0.000169,2]
[388548215,1759239572257,-500.0,0.000169,2]
[388548216,1759239572282,-500.0,0.000169,2]
[388548217,1759239572306,-500.0,0.000169,2]
[388548218,1759239572330,-500.0,0.000169,2]
[388548219,1759239572354,-500.0,0.000169,2]
[388548220,1759239572379,-500.0,0.000169,2]
[388548221,1759239572402,-500.0,0.000169,2]
[388548222,1759239572425,-500.0,0.00016973,2]
[388548223,1759239572451,-509.28250638,0.00016973,2]
[388548224,1759239572475,-510.72773165,0.00016973,2]
[388548225,1759239572501,-375.14728708,0.00016973,2]
[388548226,1759239572525,-500.0,0.00016973,2]
[388548227,1759239572549,-500.0,0.00016973,2]
[388548228,1759239572574,-200.0,0.0001699,2]
[388548229,1759239572599,-200.0,0.0001699,2]
[388548230,1759239572624,-200.0,0.0001699,2]
[388548231,1759239572648,-151.0,0.00016997,2]
[388548232,1759239572674,-221.21593769,0.00016999,2]
[388548233,1759239572698,-267.12746686,0.00016999,2]
[388548234,1759239572725,-500.0,0.00016999,2]
[388548235,1759239572752,-500.0,0.00016999,2]
[388548236,1759239572777,-183.80278522,0.00016999,2]
[388548237,1759239572805,-226.78207506,0.00016999,2]
[388548238,1759239572828,-155.0,0.00016999,2]
[388548239,1759239572852,-389.85795326,0.00016999,2]
[388548240,1759239572876,-300.0,0.00016999,2]
[388548241,1759239572900,-666.0,0.00016999,2]
[388548242,1759239572924,-155.0,0.00016999,2]
[388548243,1759239572949,-49493.84126181,0.00017,2]
[388548246,1759239653141,745.16,0.00025266,120]
[388548250,1759239833736,237039.21,0.00016525,2]
[388548251,1759239878161,429.68,0.00016449,2]
[388548253,1759239914679,150.0,0.00015288,2]
[388548254,1759239914752,150.0,0.00016137,2]
[388548255,1759239914839,150.0,0.00015288,2]
[388548256,1759239916036,150.0,0.00015288,2]
[388548257,1759239922227,150.0,0.00015288,2]
[388548258,1759239922549,150.0,0.00015288,2]
[388548259,1759239925998,150.0,0.00015288,2]
[388548260,1759239934895,150.0,0.00015288,2]
[388548261,1759239939458,150.0,0.00015288,2]
[388548262,1759239946873,150.0,0.000131,2]
[388548263,1759239947224,150.0,0.0001428,2]
[388548264,1759239947680,150.0,0.0001547,2]
[388548268,1759240057236,666.0,0.00016141,3]
[388548269,1759240136484,178.13,0.00016406,2]
[388548277,1759240232313,-150.0,0.0001665,2]
[388548279,1759240232323,-250.0,0.00016655,2]
[388548280,1759240232333,-978.8318,0.0001666,2]
[388548281,1759240232404,-1018.5105476,0.0001666,2]
[388548282,1759240232490,-861.6006524,0.0001666,2]
[388548283,1759240232500,-458.19868201,0.00016732,2]
[388548284,1759240232515,-226.1390281,0.00016732,2]
[388548285,1759240232524,-433.00676843,0.00016744,2]
[388548286,1759240232551,-766.99323157,0.00016744,2]
[388548287,1759240232561,-277.31293457,0.00016745,2]
[388548288,1759240232573,-117.46914688,0.00016745,2]
[388548289,1759240232582,-2500.0,0.00016745,2]
[388548290,1759240232592,-500.0,0.00016771,2]
[388548291,1759240232602,-189.0,0.00016771,2]
[388548292,1759240232612,-300.0,0.00016772,2]
[388548293,1759240232622,-2506.99873602,0.00016773,2]
[388548294,1759240232634,-532.84892026,0.00016773,2]
[388548295,1759240232652,-346.84803172,0.00016773,2]
[388548296,1759240232663,-550.52192692,0.00016773,2]
[388548297,1759240232699,-1046.53963378,0.00016773,2]
[388548298,1759240232711,-816.2427513,0.00016773,2]
[388548299,1759240232721,-5800.0,0.00016781,2]
[388548300,1759240232732,-5800.0,0.0001679,2]
[388548301,1759240232742,-5800.0,0.00016798,2]
[388548302,1759240232755,-2127.5211,0.000168,2]
[388548303,1759240232764,-5800.0,0.00016806,2]
[388548304,1759240232774,-5800.0,0.00016815,2]
[388548305,1759240232783,-163.18867286,0.00016822,2]
[388548307,1759240232793,-5800.0,0.00016823,2]
[388548309,1759240232802,-5800.0,0.00016832,2]
[388548310,1759240232811,-163.18867284,0.00016833,2]
[388548311,1759240232821,-5800.0,0.00016841,2]
[388548312,1759240232831,-745.16,0.00016844,2]
[388548313,1759240232840,-163.18867284,0.00016844,2]
[388548314,1759240232850,-5800.0,0.00016849,2]
[388548315,1759240232860,-163.18867284,0.00016855,2]
[388548316,1759240232869,-5800.0,0.00016858,2]
[388548317,1759240232878,-250.525279,0.00016865,2]
[388548319,1759240232888,-5800.0,0.00016866,2]
[388548321,1759240232897,-163.18867284,0.00016867,2]
[388548323,1759240232906,-5800.0,0.00016874,2]
[388548325,1759240232916,-598.36927518,0.00016876,2]
[388548327,1759240232926,-163.18867284,0.00016878,2]
[388548329,1759240232935,-5800.0,0.00016883,2]
[388548331,1759240232945,-163.18867284,0.00016889,2]
[388548333,1759240232954,-5800.0,0.00016891,2]
[388548335,1759240232964,-5800.0,0.000169,2]
[388548337,1759240232974,-1338.90925002,0.000169,2]
[388548339,1759240232983,-308.06715958,0.000169,2]
[388548341,1759240232992,-5218.62717953,0.000169,2]
[388548343,1759240233002,-163.18867284,0.000169,2]
[388548346,1759240233013,-299.99,0.00016922,4]
[388548350,1759240233337,-638.62,0.00016922,2]
[388548351,1759240233367,-418.3,0.00016922,2]
[388548352,1759240233377,-150.99,0.00016922,2]
[388548353,1759240233386,-12904.84,0.00016922,2]
[388548354,1759240233396,-5280.35826181,0.00016922,2]
[388548355,1759240233421,-1175.69779767,0.00016922,2]
[388548356,1759240233576,-3345.30642526,0.00016922,2]
[388548365,1759240238325,-198.62751526,0.00016922,2]
[388548366,1759240238335,-1932.20248474,0.00016922,2]
[388548367,1759240238451,-3795.29751526,0.00016922,2]
[388548368,1759240238461,-999.99,0.00016922,2]
[388548369,1759240238471,-9638.3,0.00016922,2]
[388548370,1759240238481,-505.2,0.00016922,2]
[388548371,1759240238491,-4856.4,0.00016922,2]
[388548372,1759240238501,-9999.99,0.00016922,2]
[388548373,1759240238514,-1579.94,0.00016922,2]
[388548374,1759240238524,-499.99,0.00016922,2]
[388548375,1759240238534,-3883.26,0.00016933,2]
[388548376,1759240238543,-500.0,0.00016973,2]
[388548377,1759240238552,-500.0,0.00016973,2]
[388548378,1759240238562,-500.0,0.00016973,2]
[388548379,1759240238572,-500.0,0.00016973,2]
[388548380,1759240238582,-500.0,0.00016973,2]
[388548381,1759240238592,-157.08739087,0.00016973,2]
[388548382,1759240238602,-360.11033021,0.00016973,2]
[388548383,1759240238612,-500.0,0.00016973,2]
[388548384,1759240238622,-154.85115638,0.00016975,2]
[388548385,1759240238631,-186.9892268,0.00016975,2]
[388548386,1759240238640,-500.0,0.00016975,2]
[388548387,1759240238650,-328.66194966,0.00016975,2]
[388548388,1759240238659,-436759.9430247,0.00016976,2]
[388548389,1759240238669,-1501.6666363,0.00016976,2]
[388548390,1759240238679,-150.0,0.00016986,2]
[388548391,1759240238689,-150.0,0.00016986,2]
[388548392,1759240238699,-150.0,0.00016986,2]
[388548393,1759240238709,-151.0,0.00016997,2]
[388548394,1759240238719,-4909609.344383,0.00017,2]
[388548395,1759240238729,-5710410.27658115,0.00017,2]
[388548396,1759240238738,-2705.1895184,0.00017,2]
[388548397,1759240238748,-97305.7502061,0.00017,2]
[388548398,1759240238759,-1994.1680042,0.00017,2]
[388548399,1759240238770,-9082.2822257,0.00017,2]
[388548400,1759240238780,-200.0,0.00017,2]
[388548401,1759240238790,-500.0,0.00017,2]
[388548402,1759240238800,-151.0,0.00017,2]
[388548403,1759240238810,-2255.13974,0.00017,2]
[388548404,1759240238819,-500.0,0.0001718,2]
[388548405,1759240238829,-2255.13975,0.0001724,2]
[388548406,1759240238839,-1338.90924996,0.00017263,2]
[388548407,1759240238848,-308.06715957,0.00017264,2]
[388548408,1759240238858,-463.0,0.00017284,2]
[388548409,1759240238868,-177.9,0.00017295,2]
[388548410,1759240238878,-1854.0,0.00017298,2]
[388548411,1759240238887,-861.0,0.00017324,2]
[388548412,1759240238897,-598.36927514,0.00017365,2]
[388548413,1759240238908,-2300.31139341,0.00017368,2]
[388548414,1759240238917,-228.4,0.00017369,2]
[388548415,1759240238927,-2300.31139341,0.0001737,2]
[388548416,1759240238938,-2300.31139341,0.00017371,2]
[388548417,1759240238947,-2300.31139341,0.00017372,2]
[388548418,1759240238958,-18663.99153608,0.00017377,2]
[388548419,1759240238968,-317.0,0.00017384,2]
[388548420,1759240238982,-18663.99153608,0.0001739,2]
[388548421,1759240238993,-18663.99153608,0.00017393,2]
[388548422,1759240239003,-2300.31139341,0.00017396,2]
[388548423,1759240239014,-18663.99153608,0.00017403,2]
[388548424,1759240239024,-2300.31139341,0.00017411,2]
[388548425,1759240239034,-462.35276856,0.00017413,2]
[388548426,1759240239044,-462.35276856,0.00017413,2]
[388548427,1759240239054,-462.35276856,0.0001745,2]
[388548428,1759240239064,-2300.31139341,0.0001745,2]
[388548429,1759240239074,-18663.99153608,0.00017451,2]
[388548430,1759240239084,-462.35276856,0.00017459,2]
[388548431,1759240239094,-18663.99153608,0.00017464,2]
[388548432,1759240239104,-462.35276856,0.00017469,2]
[388548433,1759240239114,-462.35276856,0.00017474,2]
[388548434,1759240239124,-18663.99153608,0.00017477,2]
[388548435,1759240239134,-462.35276856,0.00017483,2]
[388548436,1759240239144,-1000.0,0.00017521,2]
[388548437,1759240239155,-1000.0,0.00017521,2]
[388548438,1759240239165,-632.21596513,0.00017521,2]
[388548439,1759240239174,-1000.0,0.00017521,2]
[388548440,1759240239183,-1000.0,0.00017521,2]
[388548441,1759240239195,-500.0,0.00017521,2]
[388548442,1759240239206,-500.0,0.00017521,2]
[388548443,1759240239216,-494.0,0.00017521,2]
[388548444,1759240239225,-500.0,0.00017521,2]
[388548445,1759240239235,-150.0,0.00017521,2]
[388548446,1759240239247,-1178.0,0.00017521,2]
[388548447,1759240239257,-500.0,0.00017521,2]
[388548448,1759240239267,-150.0,0.00017521,2]
[388548449,1759240239279,-451.0,0.00017521,2]
[388548450,1759240239289,-500.0,0.00017521,2]
[388548451,1759240239299,-598.36927514,0.0001761,2]
[388548452,1759240239309,-1338.90924996,0.00017626,2]
[388548453,1759240239318,-500.0,0.00017626,2]
[388548454,1759240239328,-308.06715957,0.00017628,2]
[388548455,1759240239337,-264.91,0.00017658,2]
[388548456,1759240239347,-500.0,0.00017728,2]
[388548457,1759240239357,-150.0,0.00017728,2]
[388548458,1759240239366,-500.0,0.00017728,2]
[388548459,1759240239375,-150.0,0.00017728,2]
[388548460,1759240239385,-500.0,0.00017728,2]
[388548461,1759240239395,-150.0,0.00017728,2]
[388548462,1759240239404,-150.0,0.00017728,2]
[388548463,1759240239414,-500.0,0.00017728,2]
[388548464,1759240239424,-150.0,0.00017728,2]
[388548465,1759240239433,-150.0,0.00017728,2]
[388548466,1759240239442,-216.49252146,0.00017728,2]
[388548467,1759240239452,-150.0,0.00017728,2]
[388548468,1759240239462,-150.41623405,0.00017728,2]
[388548469,1759240239471,-150.0,0.00017728,2]
[388548470,1759240239480,-500.0,0.00017728,2]
[388548471,1759240239490,-150.0,0.00017728,2]
[388548472,1759240239500,-150.0,0.00017728,2]
[388548473,1759240239511,-500.0,0.00017728,2]
[388548474,1759240239521,-150.0,0.00017728,2]
[388548475,1759240239531,-150.0,0.00017728,2]
[388548476,1759240239542,-150.0,0.00017728,2]
[388548477,1759240239551,-500.0,0.00017728,2]
[388548478,1759240239561,-500.0,0.00017728,2]
[388548479,1759240239571,-150.0,0.00017728,2]
[388548480,1759240239582,-500.0,0.00017728,2]
[388548481,1759240239592,-150.0,0.00017728,2]
[388548482,1759240239601,-150.0,0.00017728,2]
[388548483,1759240239610,-150.0,0.00017728,2]
[388548484,1759240239619,-150.0,0.00017728,2]
[388548485,1759240239629,-500.0,0.00017728,2]
[388548486,1759240239638,-362.92,0.00017734,2]
[388548487,1759240239648,-2255.13975,0.0001775,2]
[388548488,1759240239658,-806.89,0.00017791,2]
[388548489,1759240239668,-500.0,0.00017795,2]
[388548490,1759240239677,-500.0,0.00017795,2]
[388548491,1759240239687,-494.0,0.00017795,2]
[388548492,1759240239697,-500.0,0.00017795,2]
[388548493,1759240239707,-150.0,0.00017795,2]
[388548494,1759240239717,-1178.0,0.00017795,2]
[388548495,1759240239727,-500.0,0.00017795,2]
[388548496,1759240239736,-451.0,0.00017795,2]
[388548497,1759240239746,-500.0,0.00017795,2]
[388548498,1759240239756,-172.86386602,0.00017803,2]
[388548499,1759240239767,-150.0,0.0001783,2]
[388548500,1759240239777,-598.36927514,0.00017854,2]
[388548501,1759240239787,-300.0,0.00017857,2]
[388548502,1759240239798,-53559.14557515,0.0001789,2]
[388548503,1759240239808,-500.0,0.000179,2]
[388548504,1759240239817,-1338.90924996,0.00017989,2]
[388548505,1759240239827,-2000.0,0.00018,2]
[388548506,1759240239836,-2000.0,0.00018,2]
[388548507,1759240239845,-2000.0,0.00018,2]
[388548508,1759240239854,-2000.0,0.00018,2]
[388548509,1759240239864,-760.82,0.00018,2]
[388548510,1759240239873,-2681.11048899,0.00018,2]
[388548511,1759240239883,-500.0,0.00018002,2]
[388548512,1759240239892,-200.96677742,0.00018002,2]